Workbook

Sheet 配布申込書◆併配
A1: チラシ配布申込書（併用配布）
A2: 太枠内の項目にご記入をお願い致します。 | H2: プルダウンより年月日(曜日)をお選びください
G3: お申込日
A4: フリガナ | H4: フリガナ
A5: 御社名 | H5: ご担当者 | L5: 様
A6: ご住所 | H6: 電話番号
A7: チラシ表記名 | H7: FAX番号
A8: 配布物サイズ | C8: A5 B5 A4 B4 A3 B3 | H8: 配布物形状 | J8: 折済 ペラ
C9: その他（ ） | H9: 配布先 | J9: 全戸 集合 戸建
A10: 配布方法 | C10: 配布日 [プルダウンより月日(曜日)をお選びください] | J10: 搬入日
A11: 併用配布 | F11: ～
A12: 戸建総数 | D12: 集合総数 | G12: 全戸総数 | J12: 総合計枚数
A13: =G38 -> 0 | C13: 枚 | D13: =H38 -> 0 | F13: 枚 | G13: =I38 -> 0 | I13: 枚 | J13: =SUM(G38:I38) -> 0 | L13: 枚
A14: ご希望のエリアに希望配布数をご入力ください
D15: エリア別配布数 | G15: エリア別希望配布数
D16: 戸建 | E16: 集合 | F16: 全戸 | G16: 戸建 | H16: 集合 | I16: 全戸
A17: A.加茂名エリア | D17: 4677 | E17: 5084 | F17: 9939
A18: B.加茂エリア | D18: 3476 | E18: 3611 | F18: 7275
A19: C.佐古エリア | D19: 2640 | E19: 3597 | F19: 6548
A20: D.渭北エリア | D20: 2947 | E20: 4052 | F20: 7247
A21: E.渭東エリア | D21: 2396 | E21: 4932 | F21: 7495
A22: F.沖洲エリア | D22: 3697 | E22: 3967 | F22: 7940
A23: G.内町エリア | D23: 2545 | E23: 4321 | F23: 8807
A24: H.昭和エリア | D24: 2820 | E24: 5687 | F24: 8930
A25: I.八万エリア | D25: 9072 | E25: 3099 | F25: 12492
A26: J.津田エリア | D26: 5453 | E26: 2635 | F26: 8394
A27: K1.川内エリア | D27: 399 | E27: 1126 | F27: 1525
A28: K2.応神エリア | D28: 253 | E28: 1667 | F28: 1920
A29: K3.国府エリア | D29: 208 | E29: 1354 | F29: 1562
A30: L1.石井エリア | D30: 400 | E30: 1307 | F30: 1707
A31: L2.北島エリア | D31: 926 | E31: 2629 | F31: 3555
A32: L3.松茂エリア | D32: 498 | E32: 1975 | F32: 2473
A33: L4.藍住エリア | D33: 1689 | E33: 3428 | F33: 5117
A34: L5.鳴門エリア | D34: 1022 | E34: 4381 | F34: 5403
A35: L6.小松島エリア | D35: 1554 | E35: 2639 | F35: 4193
A36: M1.阿南エリア | D36: 846 | E36: 3831 | F36: 4677
A37: M2.吉野川エリア | D37: 0 | E37: 1400 | F37: 1400
A38: 合 計 | D38: =SUM(D17:D37) -> 47518 | E38: 66722 | F38: 118599 | G38: =SUM(G17:G37) -> 0 | H38: =SUM(H17:H37) -> 0 | I38: =SUM(I17:I37) -> 0
A40: 有限会社ミッドサービス
A41: TEL：088-679-1119 FAX：088-679-9993

Sheet 配布申込書◆単独
A1: チラシ配布申込書（単独配布）
A2: 太枠内の項目にご記入をお願い致します。 | H2: プルダウンより年月日(曜日)をお選びください
G3: お申込日
A4: フリガナ | H4: フリガナ
A5: 御社名 | H5: ご担当者 | L5: 様
A6: ご住所 | H6: 電話番号
A7: チラシ表記名 | H7: FAX番号
A8: 配布物サイズ | C8: A5 B5 A4 B4 A3 B3 | H8: 配布物形状 | J8: 折済 ペラ
C9: その他（ ） | H9: 配布先 | J9: 全戸 集合 戸建
A10: 配布方法 | C10: 配布日 [プルダウンより月日(曜日)をお選びください] | J10: 搬入日
A11: 単独配布 | F11: ～
A12: 戸建総数 | D12: 集合総数 | G12: 全戸総数 | J12: 総合計枚数
A13: =G38+J38 -> 0 | C13: 枚 | D13: =H38+K38 -> 0 | F13: 枚 | G13: =I38+L38 -> 0 | I13: 枚 | J13: =SUM(G38:L38) -> 0 | L13: 枚
A14: ブロック別配布をご希望の場合はエリア名(A～M2)をクリック→ブロック別に希望配布数をご入力ください。 エリア別配布数より少ない配布数をご希望場合は②エリア別希望配布数に直接ご入力ください。
D15: 配布数 | G15: ①ブロック別希望配布数 | J15: ②エリア別希望配布数
D16: 戸建 | E16: 集合 | F16: 全戸 | G16: 戸建 | H16: 集合 | I16: 全戸 | J16: 戸建 | K16: 集合 | L16: 全戸
A17: A.加茂名エリア | D17: 4677 | E17: 5084 | F17: 9939 | G17: ='A加茂名、B加茂'!F27 -> 0 | H17: ='A加茂名、B加茂'!G27 -> 0 | I17: ='A加茂名、B加茂'!H27 -> 0
A18: B.加茂エリア | D18: 3476 | E18: 3611 | F18: 7275 | G18: ='A加茂名、B加茂'!F50 -> 0 | H18: ='A加茂名、B加茂'!G50 -> 0 | I18: ='A加茂名、B加茂'!H50 -> 0
A19: C.佐古エリア | D19: 2640 | E19: 3597 | F19: 6548 | G19: ='C佐古、D渭北'!F20 -> 0 | H19: ='C佐古、D渭北'!G20 -> 0 | I19: ='C佐古、D渭北'!H20 -> 0
A20: D.渭北エリア | D20: 2947 | E20: 4052 | F20: 7247 | G20: ='C佐古、D渭北'!F40 -> 0 | H20: ='C佐古、D渭北'!G40 -> 0 | I20: ='C佐古、D渭北'!H40 -> 0
A21: E.渭東エリア | D21: 2396 | E21: 4932 | F21: 7495 | G21: ='E渭東、F沖洲'!F20 -> 0 | H21: ='E渭東、F沖洲'!G20 -> 0 | I21: ='E渭東、F沖洲'!H20 -> 0
A22: F.沖洲エリア | D22: 3697 | E22: 3967 | F22: 7940 | G22: ='E渭東、F沖洲'!F45 -> 0 | H22: ='E渭東、F沖洲'!G45 -> 0 | I22: ='E渭東、F沖洲'!H45 -> 0
A23: G.内町エリア | D23: 2545 | E23: 4321 | F23: 8807 | G23: =G内町!F27 -> 0 | H23: =G内町!G27 -> 0 | I23: =G内町!H27 -> 0
A24: H.昭和エリア | D24: 2820 | E24: 5687 | F24: 8930 | G24: =H昭和!F22 -> 0 | H24: =H昭和!G22 -> 0 | I24: =H昭和!H22 -> 0
A25: I.八万エリア | D25: 9072 | E25: 3099 | F25: 12492 | G25: =I八万!F31 -> 0 | H25: =I八万!G31 -> 0 | I25: =I八万!H31 -> 0
A26: J.津田エリア | D26: 5453 | E26: 2635 | F26: 8394 | G26: =J津田!F25 -> 0 | H26: =J津田!G25 -> 0 | I26: =J津田!H25 -> 0
A27: K1.川内エリア | D27: 399 | E27: 1126 | F27: 1525 | G27: =K1川内・K2応神・K3国府!F7 -> 0 | H27: =K1川内・K2応神・K3国府!G7 -> 0 | I27: =K1川内・K2応神・K3国府!H7 -> 0
A28: K2.応神エリア | D28: 253 | E28: 1667 | F28: 1920 | G28: =K1川内・K2応神・K3国府!F13 -> 0 | H28: =K1川内・K2応神・K3国府!G13 -> 0 | I28: =K1川内・K2応神・K3国府!H13 -> 0
A29: K3.国府エリア | D29: 208 | E29: 1354 | F29: 1562 | G29: =K1川内・K2応神・K3国府!F18 -> 0 | H29: =K1川内・K2応神・K3国府!G18 -> 0 | I29: =K1川内・K2応神・K3国府!H18 -> 0
A30: L1.石井エリア | D30: 400 | E30: 1307 | F30: 1707 | G30: =L1石井・L2北島・L3松茂・L4藍住・L5鳴門!F6 -> 0 | H30: =L1石井・L2北島・L3松茂・L4藍住・L5鳴門!G6 -> 0 | I30: =L1石井・L2北島・L3松茂・L4藍住・L5鳴門!H6 -> 0
A31: L2.北島エリア | D31: 926 | E31: 2629 | F31: 3555 | G31: =L1石井・L2北島・L3松茂・L4藍住・L5鳴門!F14 -> 0 | H31: =L1石井・L2北島・L3松茂・L4藍住・L5鳴門!G14 -> 0 | I31: =L1石井・L2北島・L3松茂・L4藍住・L5鳴門!H14 -> 0
A32: L3.松茂エリア | D32: 498 | E32: 1975 | F32: 2473 | G32: =L1石井・L2北島・L3松茂・L4藍住・L5鳴門!F21 -> 0 | H32: =L1石井・L2北島・L3松茂・L4藍住・L5鳴門!G21 -> 0 | I32: =L1石井・L2北島・L3松茂・L4藍住・L5鳴門!H21 -> 0
A33: L4.藍住エリア | D33: 1689 | E33: 3428 | F33: 5117 | G33: =L1石井・L2北島・L3松茂・L4藍住・L5鳴門!F30 -> 0 | H33: =L1石井・L2北島・L3松茂・L4藍住・L5鳴門!G30 -> 0 | I33: =L1石井・L2北島・L3松茂・L4藍住・L5鳴門!H30 -> 0
A34: L5.鳴門エリア | D34: 1022 | E34: 4381 | F34: 5403 | G34: =L1石井・L2北島・L3松茂・L4藍住・L5鳴門!F38 -> 0 | H34: =L1石井・L2北島・L3松茂・L4藍住・L5鳴門!G38 -> 0 | I34: =L1石井・L2北島・L3松茂・L4藍住・L5鳴門!H38 -> 0
A35: L6.小松島エリア | D35: 1554 | E35: 2639 | F35: 4193 | G35: =L6小松島・M1阿南・M2吉野川!F9 -> 0 | H35: =L6小松島・M1阿南・M2吉野川!G9 -> 0 | I35: =L6小松島・M1阿南・M2吉野川!H9 -> 0
A36: M1.阿南エリア | D36: 846 | E36: 3831 | F36: 4677 | G36: =L6小松島・M1阿南・M2吉野川!F19 -> 0 | H36: =L6小松島・M1阿南・M2吉野川!G19 -> 0 | I36: =L6小松島・M1阿南・M2吉野川!H19 -> 0
A37: M2.吉野川エリア | D37: 0 | E37: 1400 | F37: 1400 | H37: =L6小松島・M1阿南・M2吉野川!G25 -> 0 | I37: =L6小松島・M1阿南・M2吉野川!H25 -> 0
A38: 合 計 | D38: =SUM(D17:D37) -> 47518 | E38: 66722 | F38: 118599 | G38: =SUM(G17:G37) -> 0 | H38: =SUM(H17:H37) -> 0 | I38: =SUM(I17:I37) -> 0 | J38: =SUM(J17:J37) -> 0 | K38: 0 | L38: 0
A40: 有限会社ミッドサービス
A41: TEL：088-679-1119 FAX：088-679-9993

Sheet MAP

Sheet A加茂名、B加茂
A1: ▼ご希望のブロックの配布希望数をご入力ください
A2: A. 加茂名エリア
A3: ブロック | B3: 町 名 | C3: ブロック別配布数 | F3: 配布希望数
A4: 番号 | C4: 戸建 | D4: 集合 | E4: 全戸 | F4: 戸建 | G4: 集合 | H4: 全戸
A5: 01 | B5: 名東町２、３丁目 | C5: 385 | D5: 60 | E5: 454
A6: 02 | B6: 名東町２丁目 | C6: 189 | D6: 226 | E6: 427
A7: 03 | B7: 名東町２丁目 | C7: 382 | D7: 140 | E7: 537
A8: 04 | B8: 名東町１丁目 | C8: 337 | D8: 126 | E8: 463
A9: 05 | B9: 名東町１丁目 | C9: 284 | D9: 326 | E9: 616
A10: 06 | B10: 鮎喰町２丁目 | C10: 191 | D10: 43 | E10: 244
A11: 07 | B11: 鮎喰町１、２丁目 南庄町５丁目 | C11: 183 | D11: 172 | E11: 360
A12: 08 | B12: 鮎喰町１、２丁目 | C12: 146 | D12: 10 | E12: 159
A13: 09 | B13: 南庄町４、５丁目 庄町４、５丁目 | C13: 222 | D13: 257 | E13: 495
A14: 10 | B14: 南庄町１～３丁目 加茂名町 | C14: 126 | D14: 575 | E14: 701
A15: 11 | B15: 庄町５丁目 | C15: 171 | D15: 112 | E15: 311
A16: 12 | B16: 庄町３、４丁目 | C16: 208 | D16: 250 | E16: 478
A17: 13 | B17: 庄町１～３丁目 | C17: 160 | D17: 481 | E17: 654
A18: 14 | B18: 南島田町３、４丁目 中島田町４丁目 | C18: 133 | D18: 345 | E18: 483
A19: 15 | B19: 南島田町１、２丁目 中島田町２丁目 | C19: 174 | D19: 394 | E19: 572
A20: 16 | B20: 中島田町２～４丁目 南島田町２、３丁目 | C20: 186 | D20: 228 | E20: 414
A21: 17 | B21: 中島田町３、４丁目 北島田町２、３丁目 | C21: 128 | D21: 309 | E21: 448
A22: 18 | B22: 北島田町１、２丁目 中島田町２、３丁目 | C22: 162 | D22: 182 | E22: 350
A23: 19 | B23: 北島田町１丁目 中島田町１丁目 北矢三町４丁目(１～３番地) | C23: 173 | D23: 187 | E23: 371
A24: 20 | B24: 北島田町１～３丁目 北矢三町４丁目(４番地) | C24: 99 | D24: 287 | E24: 390
A25: 21 | B25: 名東町２、３丁目 | C25: 319 | D25: 201 | E25: 520
A26: 22 | B26: 名東町３丁目 加茂名町 | C26: 319 | D26: 173 | E26: 492
B27: 小 計 | C27: =SUM(C5:C26) -> 4677 | D27: 5084 | E27: 9939 | F27: =SUM(F5:F26) -> 0 | G27: 0 | H27: 0
A28: B. 加茂エリア
A29: ブロック | B29: 町 名 | C29: ブロック別配布数 | F29: 配布希望数
A30: 番号 | C30: 戸建 | D30: 集合 | E30: 全戸 | F30: 戸建 | G30: 集合 | H30: 全戸
A31: 01 | B31: 北矢三町３丁目(6.8番地) ４丁目(5～10番地) | C31: 280 | D31: 200 | E31: 490
A32: 02 | B32: 北矢三町２丁目(6～10番地) ３丁目(5.6.7番地) | C32: 215 | D32: 163 | E32: 383
A33: 03 | B33: 春日３丁目(1～5番地) | C33: 161 | D33: 142 | E33: 317
A34: 04 | B34: 春日１丁目(4～7番地) ２丁目 | C34: 382 | D34: 405 | E34: 812
A35: 05 | B35: 北田宮３丁目(4～11番地) 春日１丁目(1～3番地) | C35: 306 | D35: 263 | E35: 581
A36: 06 | B36: 北田宮２丁目(8～15番地) | C36: 243 | D36: 173 | E36: 426
A37: 07 | B37: 北田宮２丁目(1～7番地) | C37: 265 | D37: 378 | E37: 653
A38: 08 | B38: 北田宮４丁目 | C38: 196 | D38: 186 | E38: 403
A39: 09 | B39: 北矢三町１丁目(1～3番地) | C39: 125 | D39: 243 | E39: 381
A40: 10 | B40: 北矢三町２丁目(1～5番地) | C40: 115 | D40: 199 | E40: 318
A41: 11 | B41: 北矢三町３丁目(1～4番地) | C41: 175 | D41: 170 | E41: 345
A42: 12 | B42: 南矢三町３丁目(3～6.10.11番地) | C42: 71 | D42: 135 | E42: 217
A43: 13 | B43: 南矢三町３丁目(1.2.7.8.9.10番地) | C43: 111 | D43: 117 | E43: 238
A44: 14 | B44: 南矢三町２丁目(1～5番地) | C44: 142 | D44: 104 | E44: 259
A45: 15 | B45: 南矢三町１丁目(1～7番地) | C45: 140 | D45: 72 | E45: 217
A46: 16 | B46: 南田宮４丁目 | C46: 136 | D46: 158 | E46: 301
A47: 17 | B47: 南田宮３丁目 北田宮３丁目(1～3番地) | C47: 120 | D47: 181 | E47: 309
A48: 18 | B48: 南矢三町１丁目(8～14番地) | C48: 159 | D48: 138 | E48: 301
A49: 19 | B49: 南矢三町２丁目(6～11番地) | C49: 134 | D49: 184 | E49: 324
B50: 小 計 | C50: =SUM(C31:C49) -> 3476 | D50: 3611 | E50: 7275 | F50: =SUM(F31:F49) -> 0 | G50: 0 | H50: 0

Sheet C佐古、D渭北
A1: ▼ご希望のブロックの配布希望数をご入力ください
A2: C. 佐古エリア
A3: ブロック | B3: 町 名 | C3: ブロック別配布数 | F3: 配布希望数
A4: 番号 | C4: 戸建 | D4: 集合 | E4: 全戸 | F4: 戸建 | G4: 集合 | H4: 全戸
A5: 01 | B5: 蔵本町１～３丁目 蔵本元町１丁目 | C5: 70 | D5: 282 | E5: 411
A6: 02 | B6: 蔵本元町２、３丁目 | C6: 117 | D6: 275 | E6: 411
A7: 03 | B7: 佐古８番町 | C7: 126 | D7: 289 | E7: 438
A8: 04 | B8: 佐古７番町 | C8: 141 | D8: 164 | E8: 309
A9: 05 | B9: 佐古６番町 | C9: 230 | D9: 274 | E9: 521
A10: 06 | B10: 南蔵本町１～３丁目 南佐古８番町(4～7番地) | C10: 121 | D10: 292 | E10: 413
A11: 07 | B11: 南佐古７番町 南佐古８番町(1～4番地) | C11: 215 | D11: 159 | E11: 381
A12: 08 | B12: 南佐古５、６番町 | C12: 244 | D12: 306 | E12: 550
A13: 09 | B13: 佐古５番町 | C13: 170 | D13: 145 | E13: 350
A14: 10 | B14: 佐古３番町（7～17番地） 佐古４番町(7～13番地) 北佐古２番町（6番地） | C14: 231 | D14: 452 | E14: 694
A15: 11 | B15: 佐古３番町(1～6番地) 佐古４番町(1～6番地) | C15: 168 | D15: 185 | E15: 388
A16: 12 | B16: 南佐古３、４番町 | C16: 243 | D16: 147 | E16: 403
A17: 13 | B17: 佐古１番町(9～18番地) 佐古２番町(7～19番地) | C17: 189 | D17: 198 | E17: 388
A18: 14 | B18: 佐古１番町(1～8番地) ２番町(1～6番地) 南佐古１番町 ２番町(1～6番地) 西新町５丁目 | C18: 255 | D18: 159 | E18: 499
A19: 15 | B19: 北佐古１、２番町 | C19: 120 | D19: 270 | E19: 392
B20: 小 計 | C20: =SUM(C5:C19) -> 2640 | D20: 3597 | E20: 6548 | F20: =SUM(F5:F19) -> 0 | G20: 0 | H20: 0
A21: D. 渭北エリア
A22: ブロック | B22: 町 名 | C22: ブロック別配布数 | F22: 配布希望数
A23: 番号 | C23: 戸建 | D23: 集合 | E23: 全戸 | F23: 戸建 | G23: 集合 | H23: 全戸
A24: 01 | B24: 南田宮２丁目 | C24: 122 | D24: 162 | E24: 307
A25: 02 | B25: 南田宮１丁目 中吉野町４丁目 | C25: 266 | D25: 491 | E25: 777
A26: 03 | B26: 北田宮１丁目 上助任町(三本松) 中吉野４丁目 田宮町（灘） | C26: 290 | D26: 279 | E26: 588
A27: 04 | B27: 上助任町(大坪、天神、蛭子) 吉野本町６丁目 上吉野町３丁目 | C27: 181 | D27: 198 | E27: 391
A28: 05 | B28: 吉野本町６丁目 中吉野町３丁目 | C28: 175 | D28: 313 | E28: 505
A29: 06 | B29: 下助任町４丁目 北前川町４丁目 吉野本町３～５丁目 | C29: 175 | D29: 35 | E29: 224
A30: 07 | B30: 中前川町５丁目 南前川町５丁目 北前川町５丁目 下助任町５丁目 | C30: 182 | D30: 316 | E30: 502
A31: 08 | B31: 北前川町４丁目 中前川町４丁目 南前川町４丁目 吉野本町２丁目 | C31: 102 | D31: 179 | E31: 299
A32: 09 | B32: 中前川町１丁目 南前川町１、２丁目 助任本町１～３丁目 下助任町１丁目 北前川町１、２丁目 | C32: 117 | D32: 249 | E32: 379
A33: 10 | B33: 助任本町１～４丁目 助任橋１～４丁目 南常三島町１丁目 北常三島町１丁目 中常三島町１丁目 | C33: 156 | D33: 538 | E33: 716
A34: 11 | B34: 中前川町２、３丁目 南前川町２、３丁目 北前川町２、３丁目 吉野本町１～３丁目 下助任町３丁目 | C34: 175 | D34: 338 | E34: 539
A35: 12 | B35: 下助任町１、２丁目 助任本町４丁目 中吉野町１、２丁目 北前川町１、２丁目 | C35: 164 | D35: 105 | E35: 269
A36: 13 | B36: 中吉野町３丁目 吉野本町４、５丁目 下助任町３丁目 | C36: 157 | D36: 187 | E36: 357
A37: 14 | B37: 上吉野町１～３丁目 助任本町７丁目 | C37: 274 | D37: 152 | E37: 432
A38: 15 | B38: 中吉野町１、２丁目 助任本町５、６丁目 | C38: 249 | D38: 155 | E38: 430
A39: 16 | B39: 東吉野町１、２丁目 助任本町５～７丁目 北常三島町１、２丁目 助任橋４丁目 | C39: 162 | D39: 355 | E39: 532
B40: 小 計 | C40: =SUM(C24:C39) -> 2947 | D40: 4052 | E40: 7247 | F40: =SUM(F24:F39) -> 0 | G40: =SUM(G24:G39) -> 0 | H40: 0

Sheet E渭東、F沖洲
A1: ▼ご希望のブロックの配布希望数をご入力ください
A2: E. 渭東エリア
A3: ブロック | B3: 町 名 | C3: ブロック別配布数 | F3: 配布希望数
A4: 番号 | C4: 戸建 | D4: 集合 | E4: 全戸 | F4: 戸建 | G4: 集合 | H4: 全戸
A5: 01 | B5: 北常三島町１～３丁目 中常三島町１、２丁目 | C5: 110 | D5: 650 | E5: 789
A6: 02 | B6: 北常三島町３丁目 中常三島町３丁目 南常三島町２、３丁目 | C6: 167 | D6: 549 | E6: 731
A7: 03 | B7: 住吉４丁目(10～12番地) 東吉野町２、３丁目 | C7: 135 | D7: 369 | E7: 509
A8: 04 | B8: 住吉４丁目(1～6番地) | C8: 174 | D8: 404 | E8: 586
A9: 05 | B9: 住吉４丁目(7～9.13番地) ５丁目(1.2.4～8番地) | C9: 202 | D9: 284 | E9: 496
A10: 06 | B10: 住吉５丁目(3番地） ６丁目 城東町２丁目(1番地) | C10: 146 | D10: 125 | E10: 292
A11: 07 | B11: 住吉２丁目 | C11: 281 | D11: 555 | E11: 857
A12: 08 | B12: 住吉１丁目(1～3.9.10番地) | C12: 135 | D12: 422 | E12: 562
A13: 09 | B13: 住吉１丁目(4～8.11番地) | C13: 166 | D13: 272 | E13: 443
A14: 10 | B14: 住吉３丁目 | C14: 265 | D14: 320 | E14: 591
A15: 11 | B15: 城東町１丁目 住吉６丁目(1番地) | C15: 112 | D15: 308 | E15: 434
A16: 12 | B16: 城東町２丁目 住吉６丁目(1番地) | C16: 57 | D16: 374 | E16: 431
A17: 13 | B17: 安宅１丁目(3～10番地) ２丁目(3.4番地) | C17: 135 | D17: 128 | E17: 281
A18: 14 | B18: 安宅２丁目(1.2.6～9番地) | C18: 205 | D18: 46 | E18: 261
A19: 15 | B19: 安宅２丁目(5番地) ３丁目 | C19: 106 | D19: 126 | E19: 232
B20: 小 計 | C20: =SUM(C5:C19) -> 2396 | D20: 4932 | E20: 7495 | F20: =SUM(F5:F19) -> 0 | G20: 0 | H20: 0
A21: F. 沖洲エリア
A22: ブロック | B22: 町 名 | C22: ブロック別配布数 | F22: 配布希望数
A23: 番号 | C23: 戸建 | D23: 集合 | E23: 全戸 | F23: 戸建 | G23: 集合 | H23: 全戸
A24: 01 | B24: 福島１丁目(1.4～6.10番地) | C24: 100 | D24: 150 | E24: 257
A25: 02 | B25: 福島１丁目(2.3.7～9番地) | C25: 146 | D25: 145 | E25: 301
A26: 03 | B26: 新南福島１、２丁目 大和町１丁目(2番地) | C26: 194 | D26: 73 | E26: 281
A27: 04 | B27: 福島２丁目 安宅１丁目(1.2番地) | C27: 143 | D27: 334 | E27: 489
A28: 05 | B28: 大和町１丁目(1.3～8番地) ２丁目 末広２丁目 | C28: 152 | D28: 251 | E28: 443
A29: 06 | B29: 末広１丁目 南末広町(1.2番) | C29: 159 | D29: 190 | E29: 374
A30: 07 | B30: 末広３丁目 | C30: 80 | D30: 122 | E30: 207
A31: 08 | B31: 末広４丁目(1～7番地) | C31: 116 | D31: 297 | E31: 414
A32: 09 | B32: 末広４丁目(8～10番地) | C32: 14 | D32: 312 | E32: 329
A33: 10 | B33: 末広２～５丁目 | C33: 260 | D33: 179 | E33: 449
A34: 11 | B34: 南末広町(1～7番) | C34: 132 | D34: 202 | E34: 354
A35: 12 | B35: 金沢１丁目 ２丁目(1.4.5番地) | C35: 64 | D35: 315 | E35: 387
A36: 13 | B36: 金沢２丁目(2.3.6番地) 北沖洲２丁目(9～14番地) ３丁目(9.10番地) | C36: 143 | D36: 150 | E36: 318
A37: 14 | B37: 北沖洲３丁目(4.6～8番地) ４丁目 | C37: 261 | D37: 274 | E37: 558
A38: 15 | B38: 北沖洲２丁目(4～9番地) ３丁目(5～8番地) | C38: 194 | D38: 173 | E38: 384
A39: 16 | B39: 北沖洲２丁目(1～3番地) ３丁目(1.2番地) 南沖洲２丁目(1～8番地) | C39: 283 | D39: 128 | E39: 420
A40: 17 | B40: 北沖洲１丁目(8～10.13～15番地) 金沢１丁目(1～3番地) ２丁目(1.2番地) | C40: 271 | D40: 129 | E40: 412
A41: 18 | B41: 北沖洲１丁目(1～7.11.12番地) | C41: 243 | D41: 45 | E41: 295
A42: 19 | B42: 南沖洲１丁目 | C42: 342 | D42: 111 | E42: 460
A43: 20 | B43: 南沖洲３、４丁目 北沖洲３丁目(3番地) ４丁目(1～3番地) | C43: 226 | D43: 298 | E43: 529
A44: 21 | B44: 南沖洲５丁目 | C44: 174 | D44: 89 | E44: 279
B45: 小 計 | C45: =SUM(C24:C44) -> 3697 | D45: 3967 | E45: 7940 | F45: =SUM(F24:F44) -> 0 | G45: =SUM(G24:G44) -> 0 | H45: 0

Sheet G内町
A1: ▼ご希望のブロックの配布希望数をご入力ください
A2: G. 内町エリア
A3: ブロック | B3: 町 名 | C3: ブロック別配布数 | F3: 配布希望数
A4: 番号 | C4: 戸建 | D4: 集合 | E4: 全戸 | F4: 戸建 | G4: 集合 | H4: 全戸
A5: 01 | B5: 出来島本町１～４丁目 北出来島町1、２丁目 東出来島町 南出来島町１、２丁目 寺島本町西２丁目 徳島町城内 藍場町２丁目 | C5: 171 | D5: 289 | E5: 550
A6: 02 | B6: 寺島本町西１丁目 寺島本町東１～３丁目 一番町１～３丁目 元町１丁目 八百屋町１～３丁目 幸町１丁目 藍場町１丁目 | C6: 16 | D6: 50 | E6: 362
A7: 03 | B7: 八百屋町１～３丁目 通町２、３丁目 中通町２、３丁目 元町２丁目 新内町２丁目 南内町２、３丁目 藍場町１丁目 両国本町１、２丁目 | C7: 91 | D7: 120 | E7: 240
A8: 04 | B8: 通町１丁目 中通町１丁目 新内町１丁目 南内町１丁目 両国本町１、２丁目 八百屋町１丁目 幸町２、３丁目 | C8: 56 | D8: 126 | E8: 250
A9: 05 | B9: 幸町１～３丁目 | C9: 32 | D9: 97 | E9: 193
A10: 06 | B10: 富田浜１～４丁目 仲之町１～４丁目 伊月町１丁目 富田橋１丁目 かちどき橋１丁目 両国橋 | C10: 42 | D10: 167 | E10: 237
A11: 07 | B11: 東山手町 東大工町１～３丁目 伊賀町１、２丁目 弓町１、２丁目 幟町１、２丁目 大道１、２丁目 新町橋２丁目 | C11: 164 | D11: 104 | E11: 336
A12: 08 | B12: 伊月町１、２丁目 南仲之町１、２丁目 仲之町１、２丁目 富田橋１、２丁目 中央通１、２丁目 秋田町１、２丁目 | C12: 202 | D12: 273 | E12: 485
A13: 09 | B13: 仲之町３、４丁目 南仲之町３、４丁目 明神町１、２丁目 かちどき橋１、２丁目 富田橋１、２丁目 中央通３、４丁目 | C13: 205 | D13: 211 | E13: 491
A14: 10 | B14: 明神町３、４丁目 かちどき橋３、４丁目 中央通３、４丁目 南昭和町１丁目 富田橋３、４丁目 | C14: 177 | D14: 296 | E14: 487
A15: 11 | B15: 中央通１、２丁目 富田橋３、４丁目 伊月町３、４丁目 | C15: 136 | D15: 113 | E15: 250
A16: 12 | B16: 富田橋５～７丁目 明神町５、６丁目 秋田町５、６丁目 伊月町５、６丁目 かちどき橋５、６丁目 南昭和町１丁目 | C16: 216 | D16: 284 | E16: 508
A17: 13 | B17: 秋田町５丁目 栄町５丁目 鷹匠町５丁目 二軒屋町１丁目 勢見町１、２丁目 | C17: 66 | D17: 115 | E17: 196
A18: 14 | B18: 伊賀町３、４丁目 弓町３、４丁目 幟町３、４丁目 大道３、４丁目 | C18: 184 | D18: 126 | E18: 323
A19: 15 | B19: 徳島町２、３丁目 中徳島町１、２丁目 徳島本町１～３丁目 | C19: 126 | D19: 444 | E19: 649
A20: 16 | B20: 徳島本町２、３丁目 徳島町１丁目 新蔵町１～３丁目 | C20: 97 | D20: 254 | E20: 407
A21: 17 | B21: 中洲町１～３丁目 | C21: 76 | D21: 150 | E21: 324
A22: 18 | B22: 新町橋 東船場 東新町 銀座 富田町１、２丁目 籠屋町 南新町１、２丁目 紺屋町 東大工町 両国橋 | C22: 62 | D22: 254 | E22: 480
A23: 19 | B23: 西船場１～５丁目 西新町１～５丁目 西大工町１～５丁 西山手 寺町 眉山町 新町橋１、２丁目 | C23: 91 | D23: 36 | E23: 270
A24: 20 | B24: 秋田町１、２丁目 栄町１、２丁目 鷹匠町１、２丁目 大道１、２丁目 紺屋町 | C24: 60 | D24: 168 | E24: 809
A25: 21 | B25: 鷹匠町３、４丁目 栄町３、４丁目 秋田町３、４丁目 大道３、４丁目 伊月町３、４丁目 | C25: 107 | D25: 303 | E25: 440
A26: 22 | B26: 鷹匠町６丁目 栄町６丁目 秋田町６丁目 二軒屋町２、３丁目 富田橋７丁目 城南町１丁目 西二軒屋町１、２丁目 | C26: 168 | D26: 341 | E26: 520
B27: 小 計 | C27: =SUM(C5:C26) -> 2545 | D27: 4321 | E27: 8807 | F27: =SUM(F5:F26) -> 0 | G27: =SUM(G5:G26) -> 0 | H27: 0

Sheet H昭和
A1: ▼ご希望のブロックの配布希望数をご入力ください
A2: H. 昭和エリア
A3: ブロック | B3: 町 名 | C3: ブロック別配布数 | F3: 配布希望数
A4: 番号 | C4: 戸建 | D4: 集合 | E4: 全戸 | F4: 戸建 | G4: 集合 | H4: 全戸
A5: 01 | B5: 昭和町３～６丁目 万代町１～６丁目 | C5: 120 | D5: 295 | E5: 490
A6: 02 | B6: 昭和町１～４丁目 中昭和町４丁目 かちどき橋１丁目 | C6: 128 | D6: 123 | E6: 304
A7: 03 | B7: 中昭和町１、２丁目 かちどき橋２丁目 | C7: 115 | D7: 112 | E7: 267
A8: 04 | B8: 中昭和町３、４丁目 南昭和町３丁目 | C8: 139 | D8: 52 | E8: 201
A9: 05 | B9: 中昭和町４、５丁目 昭和町５、６丁目 南昭和町４～６丁目 | C9: 210 | D9: 220 | E9: 442
A10: 06 | B10: 万代町７丁目 昭和町６～８丁目 南昭和町７丁目 | C10: 171 | D10: 352 | E10: 542
A11: 07 | B11: 昭和町８丁目 | C11: 85 | D11: 245 | E11: 364
A12: 08 | B12: 南昭和町１～３丁目 中昭和町１、２丁目 かちどき橋３丁目 | C12: 97 | D12: 393 | E12: 552
A13: 09 | B13: 南昭和町３、４丁目 | C13: 211 | D13: 297 | E13: 518
A14: 10 | B14: 南昭和町５、６丁目 | C14: 130 | D14: 523 | E14: 659
A15: 11 | B15: 南昭和町６、７丁目 昭和町６、８丁目 | C15: 290 | D15: 372 | E15: 680
A16: 12 | B16: 南二軒屋町１、２丁目 南二軒屋町(神成、新開) | C16: 161 | D16: 249 | E16: 439
A17: 13 | B17: 沖浜町(北畑、北川、東畑、西畑) 沖浜１丁目 富田橋８丁目 | C17: 235 | D17: 409 | E17: 648
A18: 14 | B18: 沖浜町(南開、明治開、栄開、居屋敷、中道) 沖浜２、３丁目 | C18: 258 | D18: 376 | E18: 659
A19: 15 | B19: 沖浜東１、２丁目 山城西１、２丁目 山城町（西浜傍示） | C19: 63 | D19: 721 | E19: 800
A20: 16 | B20: 山城町（東浜傍示、西浜傍示） | C20: 387 | D20: 307 | E20: 699
A21: 17 | B21: 沖浜東３丁目 山城西３、４丁目 | C21: 20 | D21: 641 | E21: 666
B22: 小 計 | C22: =SUM(C5:C21) -> 2820 | D22: 5687 | E22: 8930 | F22: =SUM(F5:F21) -> 0 | G22: 0 | H22: 0

Sheet I八万
A1: ▼ご希望のブロックの配布希望数をご入力ください
A2: I. 八万エリア
A3: ブロック | B3: 町 名 | C3: ブロック別配布数 | F3: 配布希望数
A4: 番号 | C4: 戸建 | D4: 集合 | E4: 全戸 | F4: 戸建 | G4: 集合 | H4: 全戸
A5: 01 | B5: 八万町（中津浦） | C5: 328 | D5: 95 | E5: 425
A6: 02 | B6: 城南町１丁目（3～12番地） 八万町（中津浦、中津山） 南二軒屋町（西山） | C6: 302 | D6: 210 | E6: 522
A7: 03 | B7: 城南町１丁目(2番地) ２丁目(1～6番地) ３丁目(1～3番地) | C7: 160 | D7: 97 | E7: 272
A8: 04 | B8: 城南町２丁目(5～8番地) ３丁目（4～6番地） 八万町（下千鳥） 南二軒屋町（石井利、西開） | C8: 138 | D8: 43 | E8: 195
A9: 05 | B9: 八万町（内浜、夷山） 城南町４丁目 | C9: 250 | D9: 173 | E9: 433
A10: 06 | B10: 八万町（千鳥、下千鳥） | C10: 300 | D10: 156 | E10: 465
A11: 07 | B11: 八万町（下福万） | C11: 78 | D11: 118 | E11: 217
A12: 08 | B12: 八万町（下福万、上福万、福万山、中津山） | C12: 330 | D12: 44 | E12: 384
A13: 09 | B13: 八万町（上福万、下福万、柿谷、大坪） | C13: 469 | D13: 175 | E13: 664
A14: 11 | B14: 八万町（宮の谷、馬場山、新貝、大坪） | C14: 376 | D14: 132 | E14: 516
A15: 12 | B15: 八万町（大坪） | C15: 296 | D15: 245 | E15: 541
A16: 13 | B16: 八万町（橋本、橋北、川南） | C16: 582 | D16: 210 | E16: 805
A17: 14 | B17: 八万町（内浜） 南二軒屋町３丁目 問屋町 | C17: 277 | D17: 171 | E17: 513
A18: 15 | B18: 八万町（夷山、内浜） | C18: 360 | D18: 161 | E18: 529
A19: 16 | B19: 八万町（川南、二丈） | C19: 358 | D19: 267 | E19: 649
A20: 17 | B20: 八万町（法花、犬山） 大谷町（新堤、大開） | C20: 316 | D20: 171 | E20: 497
A21: 18 | B21: 八万町（法花谷） | C21: 182 | D21: 73 | E21: 266
A22: 19 | B22: 大谷町（大開、紅葉山、新堤、野見松、南ノ前、南谷、猿楽、壱里松、長開） 八万町（法花、法花谷） 北山町（銭亀坂） | C22: 402 | D22: 59 | E22: 461
A23: 20 | B23: 上八万町（西山-北）しらさぎ台 | C23: 552 | D23: 0 | E23: 557
A24: 21 | B24: 上八万町（西山-南）しらさぎ台 | C24: 625 | D24: 0 | E24: 633
A25: 22 | B25: 上八万町（中山）センチュリーヒルズ | C25: 335 | D25: 0 | E25: 335
A26: 23 | B26: 三軒屋町（上分、下分、外、西、東） | C26: 320 | D26: 87 | E26: 420
A27: 24 | B27: 西須賀町（東開、下中須、又新堤、上野神、葛島） | C27: 393 | D27: 204 | E27: 627
A28: 25 | B28: 西須賀町（中開、西開、鶴島） 方上町（鶴島） 勝占町（原） | C28: 504 | D28: 198 | E28: 713
A29: 26 | B29: 丈六町（山端、山脇、新居田、丈領、吉田） 多家良町（北内） | C29: 420 | D29: 10 | E29: 430
A30: 27 | B30: 丈六町（長尾、休場、丈領） 渋野町（南水窪） | C30: 419 | D30: 0 | E30: 423
B31: 小 計 | C31: =SUM(C5:C30) -> 9072 | D31: 3099 | E31: 12492 | F31: =SUM(F5:F30) -> 0 | G31: 0 | H31: 0

Sheet J津田
A1: ▼ご希望のブロックの配布希望数をご入力ください
A2: J. 津田エリア
A3: ブロック | B3: 町 名 | C3: ブロック別配布数 | F3: 配布希望数
A4: 番号 | C4: 戸建 | D4: 集合 | E4: 全戸 | F4: 戸建 | G4: 集合 | H4: 全戸
A5: 01 | B5: 津田町３丁目(5番地) ４丁目 | C5: 222 | D5: 148 | E5: 375
A6: 02 | B6: 津田町１丁目 | C6: 313 | D6: 90 | E6: 403
A7: 03 | B7: 津田町２丁目 ３丁目(1～4.6.7番地) | C7: 314 | D7: 90 | E7: 441
A8: 04 | B8: 津田本町１、２丁目 | C8: 212 | D8: 38 | E8: 286
A9: 05 | B9: 津田本町３丁目 ４丁目（2.3番地） ５丁目（2番地） | C9: 246 | D9: 166 | E9: 418
A10: 06 | B10: 津田本町４丁目（1～3番地） ５丁目 新浜本町１丁目(7.8番地) | C10: 371 | D10: 147 | E10: 528
A11: 07 | B11: 津田西町１、２丁目 新浜本町４丁目（1番地） | C11: 166 | D11: 55 | E11: 232
A12: 08 | B12: 新浜本町４丁目(5番地) 津田浜之町 新浜町1丁目(1番地) | C12: 105 | D12: 48 | E12: 159
A13: 09 | B13: 新浜町１丁目 ２丁目（3番地） | C13: 159 | D13: 56 | E13: 220
A14: 10 | B14: 新浜町１丁目（5番地） ２丁目（4番地） ４丁目 | C14: 208 | D14: 119 | E14: 330
A15: 11 | B15: 新浜町２、３丁目 新浜本町３丁目(7番地) | C15: 375 | D15: 241 | E15: 616
A16: 12 | B16: 新浜本町３丁目 ４丁目（2～5番地） | C16: 329 | D16: 105 | E16: 441
A17: 13 | B17: 新浜本町１丁目(1～7番地) ２丁目(1～3番地) | C17: 142 | D17: 116 | E17: 271
A18: 14 | B18: 西新浜町１丁目(1～3番地) | C18: 184 | D18: 259 | E18: 446
A19: 15 | B19: 西新浜町１丁目(4～6番地) ２丁目 | C19: 261 | D19: 228 | E19: 534
A20: 16 | B20: 論田町（小論田、本浦下、本浦中、和太開、大江） | C20: 350 | D20: 109 | E20: 484
A21: 17 | B21: 論田町（和田開、元開、中開、新開、大江、小論田、本浦下、外籠） | C21: 127 | D21: 50 | E21: 205
A22: 18 | B22: 論田町（本浦下、本浦上、本浦中） 大原町（野神、中須、千代ヶ丸） | C22: 335 | D22: 218 | E22: 573
A23: 19 | B23: 大原町（長尾、壱町地、余慶、内開、広裏、池ノ内） | C23: 483 | D23: 191 | E23: 691
A24: 20 | B24: 大原町（千代ヶ丸、内開、野神、池の内、池内山、千代ヶ丸山、東千代ヶ丸、川添） | C24: 551 | D24: 161 | E24: 741
B25: 小 計 | C25: =SUM(C5:C24) -> 5453 | D25: 2635 | E25: 8394 | F25: =SUM(F5:F24) -> 0 | G25: 0 | H25: 0

Sheet K1川内・K2応神・K3国府
A1: ▼ご希望のブロックの配布希望数をご入力ください
A2: K1. 川内エリア
A3: ブロック | B3: 町 名 | C3: ブロック別配布数 | F3: 配布希望数
A4: 番号 | C4: 戸建 | D4: 集合 | E4: 全戸 | F4: 戸建 | G4: 集合 | H4: 全戸
A5: 01 | B5: 加賀須野、平石夷野、平石住吉、米津、平石若松、平石古田、平石若宮、富久、鈴江東、鈴江北、鈴江南、竹須賀、大松、沖島、旭野、小松東、小松西、下別宮東、下別宮西、松岡、宮島本浦、宮島浜、宮島錦野、鶴島、富吉、平石流通団地 | C5: 128 | D5: 541 | E5: 669
A6: 02 | B6: 鈴江南、鈴江北、鈴江東、鈴江西、沖島、竹須賀、平石古田、大松、平石夷野、加賀須野、中島、上別宮東、金岡 | C6: 271 | D6: 585 | E6: 856
B7: 小 計 | C7: =SUM(C5:C6) -> 399 | D7: 1126 | E7: 1525 | F7: =SUM(F5:F6) -> 0 | G7: =SUM(G5:G6) -> 0 | H7: 0
A8: K2. 応神エリア
A9: ブロック | B9: 町 名 | C9: ブロック別配布数 | F9: 配布希望数
A10: 番号 | C10: 戸建 | D10: 集合 | E10: 全戸 | F10: 戸建 | G10: 集合 | H10: 全戸
A11: 01 | B11: 川内町中島、大松、竹須賀、榎瀬、沖島、加賀須野、中島、上別宮北、上別宮南、北原、応神町古川字日ノ上、字戎子野 | C11: 253 | D11: 848 | E11: 1101
A12: 02 | B12: 川内町榎瀬、応神町古川字日ノ上、字戎子野、字北、字井利ノ元、字東、字北、字東中道、字宮ノ前、字高良、字西 | C12: 0 | D12: 819 | E12: 819
B13: 小 計 | C13: =SUM(C11:C12) -> 253 | D13: 1667 | E13: 1920 | F13: =SUM(F11:F12) -> 0 | G13: 0 | H13: 0
A14: K3. 国府エリア
A15: ブロック | B15: 町 名 | C15: ブロック別配布数 | F15: 配布希望数
A16: 番号 | C16: 戸建 | D16: 集合 | E16: 全戸 | F16: 戸建 | G16: 集合 | H16: 全戸
A17: 01 | B17: 国府町の集合住宅＋竜王の一部戸建 | C17: 208 | D17: 1354 | E17: 1562
B18: 小 計 | C18: =SUM(C17:C17) -> 208 | D18: 1354 | E18: 1562 | F18: =F17 -> 0 | G18: 0 | H18: 0

Sheet L1石井・L2北島・L3松茂・L4藍住・L5鳴門
A1: ▼ご希望のブロックの配布希望数をご入力ください
A2: L1. 石井エリア
A3: ブロック | B3: 町 名 | C3: ブロック別配布数 | F3: 配布希望数
A4: 番号 | C4: 戸建 | D4: 集合 | E4: 全戸 | F4: 戸建 | G4: 集合 | H4: 全戸
A5: 01 | B5: 石井町の集合住宅＋石井町石井・高川原・竜王の 一部戸建 | C5: 400 | D5: 1307 | E5: 1707
B6: 小 計 | C6: =SUM(C5:C5) -> 400 | D6: 1307 | E6: 1707 | F6: =F5 -> 0 | G6: 0 | H6: 0
A7: L2. 北島エリア
A8: ブロック | B8: 町 名 | C8: ブロック別配布数 | F8: 配布希望数
A9: 番号 | C9: 戸建 | D9: 集合 | E9: 全戸 | F9: 戸建 | G9: 集合 | H9: 全戸
A10: 01 | B10: 北村、中村、江尻、太郎八須、松茂町広島字丸須＋太郎八須・中村の一部戸建 | C10: 328 | D10: 430 | E10: 758
A11: 02 | B11: 北村、新喜来、中村、太郎八須、高房、鳴門市大麻町市場 | C11: 272 | D11: 619 | E11: 891
A12: 03 | B12: 江尻、鯛浜、応神町古川字鯛ノ浜添＋鯛浜の一部戸建 | C12: 125 | D12: 751 | E12: 876
A13: 04 | B13: 勝瑞、高房、中村、江尻、鯛浜、応神町古川字鯛ノ浜添＋鯛浜の一部戸建 | C13: 201 | D13: 829 | E13: 1030
B14: 小 計 | C14: =SUM(C10:C13) -> 926 | D14: 2629 | E14: 3555 | F14: =SUM(F10:F13) -> 0 | G14: =SUM(G10:G13) -> 0 | H14: 0
A15: L3. 松茂エリア
A16: ブロック | B16: 町 名 | C16: ブロック別配布数 | F16: 配布希望数
A17: 番号 | C17: 戸建 | D17: 集合 | E17: 全戸 | F17: 戸建 | G17: 集合 | H17: 全戸
A18: 01 | B18: 中喜来、広島、笹木野、満穂＋中喜来の一部戸建 | C18: 235 | D18: 1137 | E18: 1372
A19: 02 | B19: 広島、北島町中村、松茂町広島の一部戸建 | C19: 263 | D19: 322 | E19: 585
A20: 03 | B20: 住吉、笹木野 | C20: 0 | D20: 516 | E20: 516
B21: 小 計 | C21: =SUM(C18:C20) -> 498 | D21: 1975 | E21: 2473 | F21: =SUM(F18:F20) -> 0 | G21: 0 | H21: 0
A22: L4. 藍住エリア
A23: ブロック | B23: 町 名 | C23: ブロック別配布数 | F23: 配布希望数
A24: 番号 | C24: 戸建 | D24: 集合 | E24: 全戸 | F24: 戸建 | G24: 集合 | H24: 全戸
A25: 01 | B25: 乙瀬、勝瑞、矢上、笠木、住吉、奥野、徳命＋乙瀬、勝瑞以外の一部戸建 | C25: 735 | D25: 1096 | E25: 1831
A26: 02 | B26: 乙瀬、矢上、東中富、富吉＋一部戸建 | C26: 479 | D26: 675 | E26: 1154
A27: 03 | B27: 奥野、矢上、徳命＋奥野の一部戸建 | C27: 205 | D27: 737 | E27: 942
A28: 04 | B28: 勝瑞、住吉、鳴門市大麻町市場＋勝瑞の一部戸建 | C28: 215 | D28: 641 | E28: 856
A29: 05 | B29: 東中富、奥野、徳命＋東中富・奥野の一部戸建 | C29: 55 | D29: 279 | E29: 334
B30: 小 計 | C30: =SUM(C25:C29) -> 1689 | D30: 3428 | E30: 5117 | F30: =SUM(F25:F29) -> 0 | G30: 0 | H30: 0
A31: L5.鳴門エリア
A32: ブロック | B32: 町 名 | C32: ブロック別配布数 | F32: 配布希望数
A33: 番号 | C33: 戸建 | D33: 集合 | E33: 全戸 | F33: 戸建 | G33: 集合 | H33: 全戸
A34: 01 | B34: 鳴門町高島、三ツ石 | C34: 0 | D34: 1236 | E34: 1236
A35: 02 | B35: 撫養町南浜、小桑島、大桑島、黒崎、斉田、木津、瀬戸町＋撫養町の一部戸建 | C35: 336 | D35: 1403 | E35: 1739
A36: 03 | B36: 撫養町林崎、北浜、弁財天、岡崎、立岩、里浦町の一部＋撫養町の一部戸建 | C36: 286 | D36: 572 | E36: 858
A37: 04 | B37: 撫養町小桑島、南浜、斉田、木津、大津町＋大津町の一部戸建 | C37: 400 | D37: 1170 | E37: 1570
B38: 小 計 | C38: =SUM(C34:C37) -> 1022 | D38: 4381 | E38: 5403 | F38: =SUM(F34:F37) -> 0 | G38: 0 | H38: 0

Sheet L6小松島・M1阿南・M2吉野川
A1: ▼ご希望のブロックの配布希望数をご入力ください
A2: L6. 小松島エリア
A3: ブロック | B3: 町 名 | C3: ブロック別配布数 | F3: 配布希望数
A4: 番号 | C4: 戸建 | D4: 集合 | E4: 全戸 | F4: 戸建 | G4: 集合 | H4: 全戸
A5: 01 | B5: 江田町、中郷町、中田町、前原町、小松島町＋中田町の一部戸建 | C5: 225 | D5: 695 | E5: 920
A6: 02 | B6: 中郷町、神田瀬町、堀川町、松島町、小松島町、中田町、南小松島町＋小松島町・中田町の一部戸建 | C6: 380 | D6: 537 | E6: 917
A7: 03 | B7: 横須町、小松島町、芝生町、田野町、日開野町、金磯町＋横須町の一部戸建 | C7: 344 | D7: 665 | E7: 1009
A8: 04 | B8: 和田津開町、豊浦町、赤石町、大林町、金磯町、立江町、田野町、和田島町、間新田町、坂野町＋間新田町・和田島町の一部戸建 | C8: 605 | D8: 742 | E8: 1347
B9: 小 計 | C9: =SUM(C5:C8) -> 1554 | D9: 2639 | E9: 4193 | F9: =SUM(F5:F8) -> 0 | G9: =SUM(G5:G8) -> 0 | H9: =SUM(H5:H8) -> 0
A11: M1. 阿南エリア
A12: ブロック | B12: 町 名 | C12: ブロック別配布数 | F12: 配布希望数
A13: 番号 | C13: 戸建 | D13: 集合 | E13: 全戸 | F13: 戸建 | G13: 集合 | H13: 全戸
A14: 01 | B14: 上中町、宝田町、柳島町、横見町、長生町 | C14: 0 | D14: 519 | E14: 519
A15: 02 | B15: 羽ノ浦町の一部戸建 | C15: 846 | D15: 903 | E15: 1749
A16: 03 | B16: 那賀川町 | C16: 0 | D16: 523 | E16: 523
A17: 04 | B17: 富岡町、日開野町、領家町、西路見町、七見町、出来町、原ヶ崎町、向原町、黒津地町、畭町、福村町、住吉町 | C17: 0 | D17: 845 | E17: 845
A18: 05 | B18: 学原町、見能林町、才見町、津乃峰町 | C18: 0 | D18: 1041 | E18: 1041
B19: 小 計 | C19: =SUM(C14:C18) -> 846 | D19: 3831 | E19: 4677 | F19: =SUM(F14:F18) -> 0 | G19: =SUM(G14:G18) -> 0 | H19: 0
A21: M2. 吉野川エリア
A22: ブロック | B22: 町 名 | C22: ブロック別配布数 | F22: 配布希望数
A23: 番号 | C23: 戸建 | D23: 集合 | E23: 全戸 | F23: 戸建 | G23: 集合 | H23: 全戸
A24: 01 | B24: 鴨島町 | C24: 0 | D24: 1400 | E24: 1400
B25: 小 計 | C25: =SUM(C20:C24) -> 0 | D25: 1400 | E25: 1400 | F25: =SUM(F20:F24) -> 0 | G25: 0 | H25: 0
